[Event "Silves Open 2025"]
[Site "Fissul"]
[Date "2025.03.07"]
[Round "9.27"]
[White "De Kruif, Kees"]
[Black "Bravo Galvez, Ricardo"]
[Result "1/2-1/2"]
[Annotator "TA"]
[ECO "A00"]
[WhiteElo "1857"]
[BlackElo "2098"]
[PlyCount "40"]
[EventDate "2025.03.03"]
[EventType "swiss"]
[EventCountry "POR"]
[SourceTitle "playchess.com"]
[Source "ChessBase"]
[SourceQuality "1"]
[TimeControl "5400+30"]

{[%evp 9,40,4,13,13,49,0,13,6,-1,-7,54,13,50,50,185,214,224,204,215,182,192,186,192,178,192,31,42,45,45,7,0,0,0]} 1. b4 d5 2. Bb2 Qd6 3. a3 e5 4. e3 Be6 5. Nf3 f6 6. Be2 {A00: Irregular Openings.} Nh6 7. d3 (7. d4 $14) 7... Be7 8. Nbd2 O-O 9. c4 $146 (9. O-O c6 10. c4 Nd7 11. Rc1 Rad8 12. Qc2 Qb8 13. Qb1 Rfe8 14. Rc2 Nf8 15. Qa1 {0-1 Sutic,D (2028)-Hadzikasimovic,Z (2062) CRO-chT4A Center 2010 (8.25)}) 9... b6 (9... c6 $11) 10. O-O c5 11. bxc5 Qxc5 (11... bxc5 $14 12. cxd5 Bxd5) 12. d4 $18 exd4 13. Nxd4 Bf7 14. N2b3 Qc8 15. cxd5 Bxd5 16. Rc1 Qb7 {[%cal Ob8d7]} 17. Bf3 $2 {[#]} (17. Nb5 $18 {Strongly threatening Rc7.} Na6 18. Nc3) 17... Bxf3 $14 18. Qxf3 Qxf3 19. Nxf3 {[%emt 0:09:03]} Na6 {[%emt 1:40:00]} 20. Nbd4 Nc5 {[%emt 0:00:00] Weighted Error Value: White=0.36/Black=0.31  Missed win:     	White=1     	---        Mistake:       	White=1     	Black=2      Inaccurate:     	White=2     	Black=2      OK:         	White=4     	Black=5} 1/2-1/2